[Event "Early-Titled-Tuesday-Blitz-February-27-2024"]
[Site "Chess.com"]
[Date "2024.02.27"]
[Round "8"]
[White "Abund"]
[Black "Jumbo"]
[Result "0-1"]
[WhiteElo "2771"]
[BlackElo "2897"]
[TimeControl "180+1"]
[EndTime "9:27:15 PST"]
[Termination "Jumbo won by resignation"]

1. e4 {[%clk 0:03:00.9]} 1... e6 {[%clk 0:02:52.6]} 2. d4 {[%clk 0:03:00.9]}
2... d5 {[%clk 0:02:53.2]} 3. Nd2 {[%clk 0:03:01.2]} 3... c5 {[%clk 0:02:52.5]}
4. Ngf3 {[%clk 0:02:58.9]} 4... cxd4 {[%clk 0:02:52.6]} 5. Nxd4 {[%clk
0:02:48.9]} 5... Nc6 {[%clk 0:02:52.8]} 6. Bb5 {[%clk 0:02:47.1]} 6... Bd7
{[%clk 0:02:53]} 7. Nxc6 {[%clk 0:02:47.5]} 7... bxc6 {[%clk 0:02:53.2]} 8. Bd3
{[%clk 0:02:47.8]} 8... Bd6 {[%clk 0:02:53.7]} 9. Qe2 {[%clk 0:02:48.4]} 9...
Qc7 {[%clk 0:02:50.7]} 10. Nf3 {[%clk 0:02:48.8]} 10... e5 {[%clk 0:02:48.7]}
11. c4 {[%clk 0:02:49.3]} 11... Nf6 {[%clk 0:02:45.3]} 12. c5 {[%clk 0:02:20.1]}
12... Bxc5 {[%clk 0:02:43.3]} 13. exd5 {[%clk 0:02:20.4]} 13... O-O {[%clk
0:02:41.4]} 14. dxc6 {[%clk 0:01:57.8]} 14... Bxc6 {[%clk 0:02:32.1]} 15. Bb1
{[%clk 0:01:10.6]} 15... e4 {[%clk 0:01:24.7]} 16. Ng5 {[%clk 0:01:04.1]} 16...
Bb4+ {[%clk 0:01:17.2]} 17. Bd2 {[%clk 0:00:56.2]} 17... Bb5 {[%clk 0:01:17]}
18. Bxb4 {[%clk 0:00:31.5]} 18... Bxe2 {[%clk 0:01:13.8]} 19. Bxf8 {[%clk
0:00:31.8]} 19... Ba6 {[%clk 0:00:59.8]} 20. Bxe4 {[%clk 0:00:25.8]} 20... Rxf8
{[%clk 0:00:58.4]} 21. h4 {[%clk 0:00:16.5]} 21... Rd8 {[%clk 0:00:46.9]} 22.
Rh3 {[%clk 0:00:15.6]} 22... Qe5 {[%clk 0:00:40.9]} 23. Re3 {[%clk 0:00:12.4]}
23... Qxb2 {[%clk 0:00:40.9]} 24. Bd3 {[%clk 0:00:07.5]} 24... Qxa1+ {[%clk
0:00:40.1]} 25. Ke2 {[%clk 0:00:08]} 25... Rxd3 {[%clk 0:00:37.9]} 26. Rxd3
{[%clk 0:00:06.3]} 26... Qb1 {[%clk 0:00:37.6]} 27. f3 {[%clk 0:00:03.7]} 27...
Qxd3+ {[%clk 0:00:37.6]} 28. Kf2 {[%clk 0:00:04.3]} 28... Qd2+ {[%clk
0:00:36.2]} 29. Kg3 {[%clk 0:00:04.7]} 29... Nh5+ {[%clk 0:00:34.6]} 30. Kg4
{[%clk 0:00:03.5]} 30... g6 {[%clk 0:00:30.9]} 31. g3 {[%clk 0:00:02.6]} 31...
Bc8+ {[%clk 0:00:31.3]} 0-1

[Event "Early-Titled-Tuesday-Blitz-February-27-2024"]
[Site "Chess.com"]
[Date "2024.02.27"]
[Round "8"]
[White "Grischuk"]
[Black "Elsa167"]
[Result "1-0"]
[WhiteElo "3056"]
[BlackElo "2896"]
[TimeControl "180+1"]
[EndTime "9:27:17 PST"]
[Termination "Grischuk won by resignation"]

1. d4 {[%clk 0:03:00.2]} 1... Nf6 {[%clk 0:02:58.4]} 2. c4 {[%clk 0:03:00.2]}
2... e6 {[%clk 0:02:56.3]} 3. Bg5 {[%clk 0:02:59.9]} 3... d5 {[%clk 0:02:52.6]}
4. e3 {[%clk 0:02:59.7]} 4... Bb4+ {[%clk 0:02:51.4]} 5. Nc3 {[%clk 0:02:59.5]}
5... h6 {[%clk 0:02:37.7]} 6. Bh4 {[%clk 0:02:59.3]} 6... c5 {[%clk 0:02:24.1]}
7. dxc5 {[%clk 0:02:54.7]} 7... g5 {[%clk 0:02:12.1]} 8. Bg3 {[%clk 0:02:53.6]}
8... Qa5 {[%clk 0:02:12.4]} 9. Qc2 {[%clk 0:02:40.3]} 9... Ne4 {[%clk
0:02:03.4]} 10. Ne2 {[%clk 0:02:33.2]} 10... Nc6 {[%clk 0:02:02.7]} 11. a3
{[%clk 0:02:28.4]} 11... Nxc3 {[%clk 0:01:39.2]} 12. Nxc3 {[%clk 0:02:13.4]}
12... d4 {[%clk 0:01:38.8]} 13. exd4 {[%clk 0:01:13.4]} 13... Nxd4 {[%clk
0:01:39.7]} 14. Qd3 {[%clk 0:01:13.3]} 14... Nb3 {[%clk 0:00:43.6]} 15. axb4
{[%clk 0:00:50.4]} 15... Qxa1+ {[%clk 0:00:39]} 16. Nd1 {[%clk 0:00:51]} 16...
Bd7 {[%clk 0:00:27.5]} 17. Qxb3 {[%clk 0:00:48]} 17... Ba4 {[%clk 0:00:27.1]}
18. Qd3 {[%clk 0:00:48.7]} 18... Rd8 {[%clk 0:00:25.6]} 19. Bd6 {[%clk
0:00:48.4]} 19... Bxd1 {[%clk 0:00:24]} 20. Qxd1 {[%clk 0:00:47.9]} 20... Qxb2
{[%clk 0:00:24.7]} 21. Qa4+ {[%clk 0:00:27]} 21... Rd7 {[%clk 0:00:22.8]} 22.
Bd3 {[%clk 0:00:26.7]} 22... Qc1+ {[%clk 0:00:07.7]} 23. Qd1 {[%clk 0:00:23]}
23... Qc3+ {[%clk 0:00:08.3]} 24. Qd2 {[%clk 0:00:22]} 24... Qa1+ {[%clk
0:00:08.7]} 25. Qd1 {[%clk 0:00:22.2]} 25... Qc3+ {[%clk 0:00:09.4]} 26. Ke2
{[%clk 0:00:20.9]} 26... Qxb4 {[%clk 0:00:05.4]} 27. Qa1 {[%clk 0:00:20.4]}
27... Rg8 {[%clk 0:00:02.1]} 28. Rb1 {[%clk 0:00:20]} 1-0

[Event "Early-Titled-Tuesday-Blitz-February-27-2024"]
[Site "Chess.com"]
[Date "2024.02.27"]
[Round "8"]
[White "Russian_berezka"]
[Black "krzyzan94"]
[Result "0-1"]
[WhiteElo "2592"]
[BlackElo "2799"]
[TimeControl "180+1"]
[EndTime "9:27:20 PST"]
[Termination "krzyzan94 won by resignation"]

1. d4 {[%clk 0:03:00.9]} 1... Nf6 {[%clk 0:02:58.5]} 2. c4 {[%clk 0:03:01.4]}
2... d6 {[%clk 0:02:58.9]} 3. Nf3 {[%clk 0:03:01.1]} 3... g6 {[%clk 0:02:57.1]}
4. Nc3 {[%clk 0:03:01.7]} 4... Bf5 {[%clk 0:02:57]} 5. Qb3 {[%clk 0:03:00]} 5...
Qc8 {[%clk 0:02:56.3]} 6. h3 {[%clk 0:02:53.1]} 6... Bg7 {[%clk 0:02:50.1]} 7.
g4 {[%clk 0:02:52.7]} 7... Bd7 {[%clk 0:02:47.3]} 8. e4 {[%clk 0:02:53.1]} 8...
O-O {[%clk 0:02:45.6]} 9. Be3 {[%clk 0:02:46.7]} 9... c5 {[%clk 0:02:45.2]} 10.
d5 {[%clk 0:02:42.3]} 10... e6 {[%clk 0:02:45.5]} 11. Bg2 {[%clk 0:02:32.3]}
11... exd5 {[%clk 0:02:42.3]} 12. exd5 {[%clk 0:02:30.4]} 12... Re8 {[%clk
0:02:36.7]} 13. Kf1 {[%clk 0:02:23.9]} 13... h5 {[%clk 0:02:19.6]} 14. g5 {[%clk
0:02:21.7]} 14... Ne4 {[%clk 0:02:17.6]} 15. Nxe4 {[%clk 0:02:06.3]} 15... Rxe4
{[%clk 0:02:18.3]} 16. h4 {[%clk 0:01:58.3]} 16... Na6 {[%clk 0:01:33.3]} 17.
Nd2 {[%clk 0:01:57.7]} 17... Re8 {[%clk 0:01:30.8]} 18. Bf4 {[%clk 0:01:57.7]}
18... Bg4 {[%clk 0:01:20]} 19. Bxd6 {[%clk 0:01:35.7]} 19... Re2 {[%clk
0:01:10.3]} 20. Bf4 {[%clk 0:01:15.4]} 20... Qf5 {[%clk 0:01:02.8]} 21. Qg3
{[%clk 0:01:15.5]} 21... Rae8 {[%clk 0:00:56.5]} 22. f3 {[%clk 0:00:49.5]} 22...
Rxd2 {[%clk 0:00:23.3]} 23. fxg4 {[%clk 0:00:36.9]} 23... hxg4 {[%clk
0:00:23.2]} 24. Kg1 {[%clk 0:00:31.5]} 24... Bd4+ {[%clk 0:00:23.1]} 25. Kh2
{[%clk 0:00:28.5]} 25... Bf2 {[%clk 0:00:23.7]} 26. Raf1 {[%clk 0:00:13.3]}
26... Bxg3+ {[%clk 0:00:23.6]} 27. Bxg3 {[%clk 0:00:11.7]} 27... Rxg2+ {[%clk
0:00:18.3]} 28. Kxg2 {[%clk 0:00:10.8]} 28... Re2+ {[%clk 0:00:19.2]} 29. Rf2
{[%clk 0:00:09.5]} 29... Rxf2+ {[%clk 0:00:19.5]} 30. Bxf2 {[%clk 0:00:08.9]}
30... Qf3+ {[%clk 0:00:20.4]} 31. Kg1 {[%clk 0:00:08.6]} 31... g3 {[%clk
0:00:20.9]} 32. Be1 {[%clk 0:00:08.7]} 32... g2 {[%clk 0:00:20.6]} 0-1

[Event "Early-Titled-Tuesday-Blitz-February-27-2024"]
[Site "Chess.com"]
[Date "2024.02.27"]
[Round "8"]
[White "Rodalquilar"]
[Black "laziestwin"]
[Result "1-0"]
[WhiteElo "2794"]
[BlackElo "2589"]
[TimeControl "180+1"]
[EndTime "9:27:26 PST"]
[Termination "Rodalquilar won on time"]

1. d4 {[%clk 0:03:00.9]} 1... d6 {[%clk 0:03:00]} 2. e4 {[%clk 0:02:59.8]} 2...
e5 {[%clk 0:02:57.3]} 3. Nf3 {[%clk 0:02:28.7]} 3... Nd7 {[%clk 0:02:49.7]} 4.
Bc4 {[%clk 0:02:24.5]} 4... Be7 {[%clk 0:02:46.4]} 5. O-O {[%clk 0:01:58.1]}
5... Ngf6 {[%clk 0:02:37.2]} 6. Re1 {[%clk 0:01:49.6]} 6... O-O {[%clk
0:02:36.9]} 7. a4 {[%clk 0:01:49]} 7... c6 {[%clk 0:02:37.1]} 8. Nc3 {[%clk
0:01:39.3]} 8... h6 {[%clk 0:02:01.1]} 9. a5 {[%clk 0:01:38.3]} 9... Rb8 {[%clk
0:01:58.2]} 10. h3 {[%clk 0:01:35]} 10... b5 {[%clk 0:01:56.1]} 11. axb6 {[%clk
0:01:35.4]} 11... axb6 {[%clk 0:01:56.4]} 12. d5 {[%clk 0:01:34.2]} 12... b5
{[%clk 0:01:52.4]} 13. Bb3 {[%clk 0:01:30.8]} 13... c5 {[%clk 0:01:50.8]} 14.
Nb1 {[%clk 0:01:24.6]} 14... c4 {[%clk 0:01:49.5]} 15. Ba2 {[%clk 0:01:25]}
15... Nc5 {[%clk 0:01:46.2]} 16. Nfd2 {[%clk 0:01:18.4]} 16... Ra8 {[%clk
0:01:33.4]} 17. Na3 {[%clk 0:01:16.8]} 17... Bd7 {[%clk 0:01:29.5]} 18. c3
{[%clk 0:01:16.3]} 18... Nd3 {[%clk 0:01:22.9]} 19. Rf1 {[%clk 0:01:09.4]} 19...
Qb6 {[%clk 0:01:15.3]} 20. Ndxc4 {[%clk 0:01:00.1]} 20... bxc4 {[%clk
0:00:40.6]} 21. Nxc4 {[%clk 0:01:01]} 21... Qc7 {[%clk 0:00:14.1]} 22. Qxd3
{[%clk 0:01:00.6]} 22... Bb5 {[%clk 0:00:14.4]} 23. b3 {[%clk 0:00:45]} 23...
Nd7 {[%clk 0:00:14.7]} 24. Bb2 {[%clk 0:00:42.9]} 24... Nc5 {[%clk 0:00:13.4]}
25. Qc2 {[%clk 0:00:43.1]} 25... Bxc4 {[%clk 0:00:09.3]} 26. bxc4 {[%clk
0:00:43.3]} 26... Rfb8 {[%clk 0:00:08.8]} 27. Bb1 {[%clk 0:00:38.7]} 27... Qb6
{[%clk 0:00:07.9]} 28. Rxa8 {[%clk 0:00:37.9]} 28... Rxa8 {[%clk 0:00:08.8]} 29.
Bc1 {[%clk 0:00:37]} 29... Rb8 {[%clk 0:00:07.2]} 30. Be3 {[%clk 0:00:37.3]}
30... Bg5 {[%clk 0:00:06.8]} 31. Qe2 {[%clk 0:00:30]} 31... Bxe3 {[%clk
0:00:05.7]} 32. Qxe3 {[%clk 0:00:30.6]} 32... Qb2 {[%clk 0:00:05.6]} 33. f4
{[%clk 0:00:29.1]} 33... exf4 {[%clk 0:00:05.1]} 34. Qxf4 {[%clk 0:00:29.6]}
34... Rb7 {[%clk 0:00:02.3]} 35. Qxd6 {[%clk 0:00:29.6]} 35... Nb3 {[%clk
0:00:02.2]} 36. e5 {[%clk 0:00:27]} 1-0

[Event "Early-Titled-Tuesday-Blitz-February-27-2024"]
[Site "Chess.com"]
[Date "2024.02.27"]
[Round "8"]
[White "xamax2000"]
[Black "Alexei_Gubajdullin"]
[Result "1-0"]
[WhiteElo "2834"]
[BlackElo "2642"]
[TimeControl "180+1"]
[EndTime "9:27:28 PST"]
[Termination "xamax2000 won on time"]

1. Nf3 {[%clk 0:03:00.9]} 1... Nf6 {[%clk 0:02:59.1]} 2. c4 {[%clk 0:03:00.9]}
2... g6 {[%clk 0:02:58.9]} 3. Nc3 {[%clk 0:03:00.6]} 3... Bg7 {[%clk 0:02:59.1]}
4. e4 {[%clk 0:03:01.2]} 4... d6 {[%clk 0:02:58.8]} 5. d4 {[%clk 0:03:01.7]}
5... O-O {[%clk 0:02:58.8]} 6. Be2 {[%clk 0:03:02.2]} 6... Na6 {[%clk
0:02:58.1]} 7. O-O {[%clk 0:03:02.1]} 7... e5 {[%clk 0:02:58.1]} 8. Be3 {[%clk
0:03:02.6]} 8... c6 {[%clk 0:02:56.6]} 9. Qc2 {[%clk 0:02:55.5]} 9... Ng4 {[%clk
0:02:53.3]} 10. Bg5 {[%clk 0:02:55.4]} 10... f6 {[%clk 0:02:53]} 11. Bh4 {[%clk
0:02:54.1]} 11... g5 {[%clk 0:02:49.6]} 12. Bg3 {[%clk 0:02:54.2]} 12... f5
{[%clk 0:02:49.8]} 13. exf5 {[%clk 0:02:35.4]} 13... exd4 {[%clk 0:02:47.7]} 14.
Ne4 {[%clk 0:02:18.1]} 14... Bxf5 {[%clk 0:02:43.9]} 15. h3 {[%clk 0:02:18.6]}
15... Nf6 {[%clk 0:02:27]} 16. Nxf6+ {[%clk 0:02:04.8]} 16... Qxf6 {[%clk
0:02:26.3]} 17. Qd2 {[%clk 0:02:04.3]} 17... Nc5 {[%clk 0:02:20.7]} 18. Qxg5
{[%clk 0:01:43.9]} 18... d3 {[%clk 0:02:18.2]} 19. Qxf6 {[%clk 0:01:34.6]} 19...
Bxf6 {[%clk 0:01:47.9]} 20. Bd1 {[%clk 0:01:34.4]} 20... Ne4 {[%clk 0:01:42.8]}
21. Bh2 {[%clk 0:01:29.9]} 21... Bxb2 {[%clk 0:01:39.3]} 22. Rb1 {[%clk
0:01:30.2]} 22... Ba3 {[%clk 0:01:31.4]} 23. Rxb7 {[%clk 0:01:30.4]} 23... Rfb8
{[%clk 0:01:24.9]} 24. Rc7 {[%clk 0:01:15.3]} 24... Rb1 {[%clk 0:01:23.9]} 25.
Bb3 {[%clk 0:01:13.1]} 25... Rxf1+ {[%clk 0:01:19.1]} 26. Kxf1 {[%clk 0:01:14]}
26... Bc5 {[%clk 0:01:11.6]} 27. Rxc6 {[%clk 0:01:10]} 27... Re8 {[%clk
0:00:59]} 28. Rc7 {[%clk 0:01:02.3]} 28... d2 {[%clk 0:00:45.2]} 29. Bf4 {[%clk
0:00:55.2]} 29... Bb6 {[%clk 0:00:17]} 30. c5+ {[%clk 0:00:53.8]} 30... Be6
{[%clk 0:00:15]} 31. cxb6 {[%clk 0:00:42.3]} 31... Bxb3 {[%clk 0:00:13.2]} 32.
Nxd2 {[%clk 0:00:40.9]} 32... Bxa2 {[%clk 0:00:08.3]} 33. Nxe4 {[%clk
0:00:31.2]} 33... Rxe4 {[%clk 0:00:07.5]} 34. b7 {[%clk 0:00:31.7]} 34... Rxf4
{[%clk 0:00:04.1]} 35. b8=Q+ {[%clk 0:00:31.3]} 35... Rf8 {[%clk 0:00:05]} 36.
Qb2 {[%clk 0:00:31]} 1-0

[Event "Early-Titled-Tuesday-Blitz-February-27-2024"]
[Site "Chess.com"]
[Date "2024.02.27"]
[Round "8"]
[White "AnaKuchava"]
[Black "maurovargas01"]
[Result "1-0"]
[WhiteElo "2161"]
[BlackElo "1861"]
[TimeControl "180+1"]
[EndTime "9:27:28 PST"]
[Termination "AnaKuchava won on time"]

1. d4 {[%clk 0:03:00.9]} 1... d5 {[%clk 0:02:59]} 2. Nf3 {[%clk 0:02:59]} 2...
Bg4 {[%clk 0:02:55.1]} 3. Ne5 {[%clk 0:02:58.6]} 3... Bh5 {[%clk 0:02:55.1]} 4.
g4 {[%clk 0:02:54.2]} 4... f6 {[%clk 0:02:53.3]} 5. h4 {[%clk 0:02:54.7]} 5...
fxe5 {[%clk 0:02:46.2]} 6. gxh5 {[%clk 0:02:54]} 6... e4 {[%clk 0:02:43.1]} 7.
Bh3 {[%clk 0:01:57.1]} 7... Qd6 {[%clk 0:02:36.2]} 8. c4 {[%clk 0:01:46.8]} 8...
dxc4 {[%clk 0:02:19.8]} 9. e3 {[%clk 0:01:19.4]} 9... b5 {[%clk 0:02:04.6]} 10.
Qg4 {[%clk 0:01:15.6]} 10... Nc6 {[%clk 0:01:56.5]} 11. Qxe4 {[%clk 0:01:14]}
11... Nf6 {[%clk 0:01:53.2]} 12. Qc2 {[%clk 0:01:08.3]} 12... Rb8 {[%clk
0:01:43.3]} 13. a3 {[%clk 0:01:07.1]} 13... Nxh5 {[%clk 0:01:32.8]} 14. Nc3
{[%clk 0:01:01.7]} 14... a6 {[%clk 0:01:20.3]} 15. Ne4 {[%clk 0:00:45.7]} 15...
Qg6 {[%clk 0:01:06.1]} 16. Bd2 {[%clk 0:00:28.1]} 16... Nf6 {[%clk 0:00:56.7]}
17. Nxf6+ {[%clk 0:00:27.5]} 17... Qxf6 {[%clk 0:00:47.1]} 18. O-O-O {[%clk
0:00:26.3]} 18... h6 {[%clk 0:00:46]} 19. Bc3 {[%clk 0:00:23.4]} 19... Qd6
{[%clk 0:00:18.4]} 20. d5 {[%clk 0:00:16.3]} 20... Ne5 {[%clk 0:00:15.3]} 21.
Qf5 {[%clk 0:00:15.7]} 21... Nd3+ {[%clk 0:00:14.1]} 22. Kb1 {[%clk 0:00:15.2]}
22... g6 {[%clk 0:00:04.1]} 23. Qf3 {[%clk 0:00:08.3]} 23... Rg8 {[%clk
0:00:02.6]} 24. Rhg1 {[%clk 0:00:07]} 1-0

[Event "Early-Titled-Tuesday-Blitz-February-27-2024"]
[Site "Chess.com"]
[Date "2024.02.27"]
[Round "8"]
[White "CarlosjPineror"]
[Black "Chernov_Alexander_A"]
[Result "1-0"]
[WhiteElo "2549"]
[BlackElo "2339"]
[TimeControl "180+1"]
[EndTime "9:27:31 PST"]
[Termination "CarlosjPineror won on time"]

1. e4 {[%clk 0:02:59.3]} 1... d6 {[%clk 0:02:25.6]} 2. d4 {[%clk 0:02:57.2]}
2... Nf6 {[%clk 0:02:25.1]} 3. Nc3 {[%clk 0:02:57.6]} 3... Nbd7 {[%clk
0:02:24.7]} 4. Nf3 {[%clk 0:02:57.1]} 4... e5 {[%clk 0:02:24.8]} 5. Bc4 {[%clk
0:02:57.6]} 5... Be7 {[%clk 0:02:24.1]} 6. O-O {[%clk 0:02:56.1]} 6... O-O
{[%clk 0:02:24]} 7. h3 {[%clk 0:02:56.3]} 7... c6 {[%clk 0:02:23.7]} 8. a4
{[%clk 0:02:56]} 8... a5 {[%clk 0:02:22.3]} 9. Qe2 {[%clk 0:02:53.7]} 9... Qc7
{[%clk 0:02:21.2]} 10. dxe5 {[%clk 0:02:52.1]} 10... dxe5 {[%clk 0:02:20.6]} 11.
Nh4 {[%clk 0:02:47.6]} 11... Nc5 {[%clk 0:02:19.1]} 12. Nf5 {[%clk 0:02:34]}
12... Bxf5 {[%clk 0:02:05.2]} 13. exf5 {[%clk 0:02:34]} 13... Rfe8 {[%clk
0:01:51.6]} 14. Be3 {[%clk 0:02:20.8]} 14... e4 {[%clk 0:01:50.8]} 15. Bxf7+
{[%clk 0:01:56.4]} 15... Kxf7 {[%clk 0:01:30.8]} 16. Qc4+ {[%clk 0:01:56.1]}
16... Kf8 {[%clk 0:01:24.4]} 17. Bxc5 {[%clk 0:01:56.2]} 17... Qe5 {[%clk
0:01:24.1]} 18. Bd4 {[%clk 0:01:41.1]} 18... Qxf5 {[%clk 0:01:22.5]} 19. Rfe1
{[%clk 0:01:39.8]} 19... Rad8 {[%clk 0:01:04.1]} 20. Rad1 {[%clk 0:01:20.9]}
20... Bb4 {[%clk 0:00:51.6]} 21. Bxf6 {[%clk 0:00:54.8]} 21... gxf6 {[%clk
0:00:50.5]} 22. Rxd8 {[%clk 0:00:54.3]} 22... Rxd8 {[%clk 0:00:48.1]} 23. Rxe4
{[%clk 0:00:14.8]} 23... Bxc3 {[%clk 0:00:46.4]} 24. bxc3 {[%clk 0:00:15.7]}
24... Rd1+ {[%clk 0:00:44.5]} 25. Kh2 {[%clk 0:00:14.7]} 25... Qxf2 {[%clk
0:00:42.7]} 26. Qe6 {[%clk 0:00:09.5]} 26... Rg1 {[%clk 0:00:31.8]} 27. Qe7+
{[%clk 0:00:07.7]} 27... Kg8 {[%clk 0:00:31.2]} 28. Rg4+ {[%clk 0:00:07.9]} 1-0

[Event "Early-Titled-Tuesday-Blitz-February-27-2024"]
[Site "Chess.com"]
[Date "2024.02.27"]
[Round "8"]
[White "ural58"]
[Black "Mikhail_Bryakin"]
[Result "0-1"]
[WhiteElo "2493"]
[BlackElo "2757"]
[TimeControl "180+1"]
[EndTime "9:27:32 PST"]
[Termination "Mikhail_Bryakin won by resignation"]

1. e4 {[%clk 0:02:52.5]} 1... d5 {[%clk 0:02:56.5]} 2. exd5 {[%clk 0:02:52.1]}
2... Nf6 {[%clk 0:02:56.4]} 3. d4 {[%clk 0:02:51.5]} 3... Bg4 {[%clk 0:02:55.7]}
4. Bb5+ {[%clk 0:02:49.4]} 4... Nbd7 {[%clk 0:02:53.8]} 5. Be2 {[%clk
0:02:49.4]} 5... Bxe2 {[%clk 0:02:46.6]} 6. Qxe2 {[%clk 0:02:50]} 6... Nxd5
{[%clk 0:02:38.1]} 7. c4 {[%clk 0:02:50]} 7... N5f6 {[%clk 0:02:38.7]} 8. Nc3
{[%clk 0:02:50.2]} 8... g6 {[%clk 0:02:36.8]} 9. Bg5 {[%clk 0:02:45.5]} 9... Bg7
{[%clk 0:02:37]} 10. Nf3 {[%clk 0:02:43.9]} 10... O-O {[%clk 0:02:37.5]} 11. O-O
{[%clk 0:02:43.4]} 11... c6 {[%clk 0:02:36.4]} 12. Rfe1 {[%clk 0:02:43]} 12...
Re8 {[%clk 0:02:36.9]} 13. h3 {[%clk 0:02:37.5]} 13... Qc7 {[%clk 0:02:35.9]}
14. Bh4 {[%clk 0:02:36.6]} 14... Nh5 {[%clk 0:02:35.2]} 15. Qe3 {[%clk
0:02:27.4]} 15... e5 {[%clk 0:02:17.8]} 16. d5 {[%clk 0:02:26]} 16... Nf4 {[%clk
0:02:12.1]} 17. Bg3 {[%clk 0:02:22.4]} 17... cxd5 {[%clk 0:02:12.3]} 18. cxd5
{[%clk 0:02:21.5]} 18... Nf6 {[%clk 0:01:59.7]} 19. Rad1 {[%clk 0:02:18.8]}
19... Rad8 {[%clk 0:01:57.7]} 20. Bxf4 {[%clk 0:02:17.6]} 20... exf4 {[%clk
0:01:57.8]} 21. Qxa7 {[%clk 0:02:17.5]} 21... Rxe1+ {[%clk 0:01:56.3]} 22. Rxe1
{[%clk 0:02:09.8]} 22... Nxd5 {[%clk 0:01:49.4]} 23. Nxd5 {[%clk 0:02:09.6]}
23... Rxd5 {[%clk 0:01:50.3]} 24. Re8+ {[%clk 0:02:08.3]} 24... Bf8 {[%clk
0:01:50.8]} 25. Qa8 {[%clk 0:02:07.9]} 25... Qc5 {[%clk 0:01:41.9]} 26. Qxb7
{[%clk 0:01:56.1]} 26... Rd1+ {[%clk 0:01:41.5]} 27. Re1 {[%clk 0:01:52.2]}
27... Rxe1+ {[%clk 0:01:40.3]} 28. Nxe1 {[%clk 0:01:52.4]} 28... Qc1 {[%clk
0:01:40]} 29. Kf1 {[%clk 0:01:46.7]} 29... Bc5 {[%clk 0:01:30.6]} 30. Qf3 {[%clk
0:01:32.5]} 30... Qxb2 {[%clk 0:01:21.7]} 31. Qxf4 {[%clk 0:01:31.9]} 31... Qb5+
{[%clk 0:01:16.7]} 32. Kg1 {[%clk 0:01:29.1]} 32... Qe2 {[%clk 0:01:13.6]} 33.
Qb8+ {[%clk 0:01:10.5]} 33... Kg7 {[%clk 0:01:12.5]} 34. Nd3 {[%clk 0:01:09.2]}
34... Bd4 {[%clk 0:00:49.8]} 35. Qg3 {[%clk 0:00:57.3]} 35... Qxa2 {[%clk
0:00:46.8]} 36. Kh2 {[%clk 0:00:52.5]} 36... Qe2 {[%clk 0:00:45.2]} 37. f4
{[%clk 0:00:51.4]} 37... Qe4 {[%clk 0:00:41.3]} 38. Qf3 {[%clk 0:00:48.5]} 38...
Qxf3 {[%clk 0:00:38.9]} 39. gxf3 {[%clk 0:00:48.7]} 39... Kf6 {[%clk 0:00:39.8]}
40. Kg3 {[%clk 0:00:48.7]} 40... Kf5 {[%clk 0:00:40.3]} 41. Ne1 {[%clk
0:00:45.2]} 41... Be3 {[%clk 0:00:20.1]} 42. Ng2 {[%clk 0:00:44.8]} 42... Bc1
{[%clk 0:00:20.7]} 43. Nh4+ {[%clk 0:00:44.3]} 43... Kf6 {[%clk 0:00:21.4]} 44.
Ng2 {[%clk 0:00:39.5]} 44... Bd2 {[%clk 0:00:21.5]} 45. Nh4 {[%clk 0:00:39]}
45... Be1+ {[%clk 0:00:21]} 0-1

[Event "Early-Titled-Tuesday-Blitz-February-27-2024"]
[Site "Chess.com"]
[Date "2024.02.27"]
[Round "8"]
[White "GeorgiosSouleidis"]
[Black "HajiyevKanan"]
[Result "1-0"]
[WhiteElo "2706"]
[BlackElo "2530"]
[TimeControl "180+1"]
[EndTime "9:27:32 PST"]
[Termination "GeorgiosSouleidis won by checkmate"]

1. e4 {[%clk 0:03:00.9]} 1... c6 {[%clk 0:03:00.5]} 2. Nc3 {[%clk 0:03:00.5]}
2... d5 {[%clk 0:03:01.4]} 3. Nf3 {[%clk 0:03:01.2]} 3... a6 {[%clk 0:03:01.9]}
4. d4 {[%clk 0:03:00.7]} 4... Bg4 {[%clk 0:03:01.9]} 5. h3 {[%clk 0:03:01.1]}
5... Bh5 {[%clk 0:03:01.9]} 6. g4 {[%clk 0:03:01.5]} 6... Bg6 {[%clk 0:03:02.2]}
7. exd5 {[%clk 0:03:02.1]} 7... cxd5 {[%clk 0:03:03.1]} 8. h4 {[%clk 0:02:55.3]}
8... Nc6 {[%clk 0:02:57.7]} 9. Ne5 {[%clk 0:02:45.6]} 9... Nxe5 {[%clk
0:02:26.5]} 10. dxe5 {[%clk 0:02:46.5]} 10... h5 {[%clk 0:02:23.9]} 11. Bg2
{[%clk 0:02:12.6]} 11... e6 {[%clk 0:02:20.8]} 12. g5 {[%clk 0:02:00.2]} 12...
Qc7 {[%clk 0:02:14.1]} 13. Bf4 {[%clk 0:01:46.1]} 13... Bb4 {[%clk 0:02:12.8]}
14. Qd4 {[%clk 0:01:36.3]} 14... Bxc3+ {[%clk 0:02:04.3]} 15. bxc3 {[%clk
0:01:08.8]} 15... Bxc2 {[%clk 0:02:01.3]} 16. Rc1 {[%clk 0:01:05]} 16... Bg6
{[%clk 0:01:59.7]} 17. c4 {[%clk 0:01:03.7]} 17... Qa5+ {[%clk 0:00:30.6]} 18.
Bd2 {[%clk 0:01:03.3]} 18... Qa4 {[%clk 0:00:31.3]} 19. Qb6 {[%clk 0:00:53.5]}
19... Qc6 {[%clk 0:00:26.1]} 20. Qe3 {[%clk 0:00:25.7]} 20... Qd7 {[%clk
0:00:26.3]} 21. cxd5 {[%clk 0:00:25.4]} 21... exd5 {[%clk 0:00:26.4]} 22. O-O
{[%clk 0:00:20.3]} 22... Ne7 {[%clk 0:00:26.5]} 23. Bb4 {[%clk 0:00:19.7]} 23...
O-O {[%clk 0:00:24.5]} 24. Qd2 {[%clk 0:00:17.8]} 24... Rfd8 {[%clk 0:00:20.4]}
25. Rfd1 {[%clk 0:00:18]} 25... d4 {[%clk 0:00:18.5]} 26. Bd6 {[%clk 0:00:15.9]}
26... d3 {[%clk 0:00:17.9]} 27. Rc7 {[%clk 0:00:13.8]} 27... Qg4 {[%clk
0:00:16.1]} 28. Rxe7 {[%clk 0:00:13.7]} 28... Be4 {[%clk 0:00:15.9]} 29. f3
{[%clk 0:00:12.6]} 29... Bxf3 {[%clk 0:00:16.3]} 30. Rf1 {[%clk 0:00:12.2]}
30... Be2 {[%clk 0:00:07.8]} 31. Rfxf7 {[%clk 0:00:11.4]} 31... Qxh4 {[%clk
0:00:03.2]} 32. Rxg7+ {[%clk 0:00:11.8]} 32... Kh8 {[%clk 0:00:03.9]} 33. Rh7+
{[%clk 0:00:12.4]} 33... Kg8 {[%clk 0:00:04.4]} 34. Reg7# {[%clk 0:00:13.3]} 1-0